[Event "*** Titled Tuesday Blitz"]
[Site "Chess.com"]
[Date "2020.04.28"]
[Round "6"]
[White "NFork"]
[Black "ItsCheckM8Mate"]
[Result "0-1"]
[WhiteElo "1905"]
[BlackElo "2250"]
[TimeControl "180+1"]
[EndTime "11:06:54 PDT"]
[Termination "ItsCheckM8Mate won on time"]

1. Nf3 {[%clk 0:03:00.9]} 1... d5 {[%clk 0:02:59.4]} 2. b3 {[%clk 0:03:00.6]}
2... Nd7 {[%clk 0:02:58.1]} 3. Bb2 {[%clk 0:03:00.6]} 3... Ngf6 {[%clk
0:02:57.7]} 4. e3 {[%clk 0:03:00.7]} 4... c5 {[%clk 0:02:57.3]} 5. Be2 {[%clk
0:03:00.5]} 5... e6 {[%clk 0:02:57.3]} 6. O-O {[%clk 0:03:00.5]} 6... Bd6 {[%clk
0:02:57.8]} 7. c4 {[%clk 0:03:00.7]} 7... O-O {[%clk 0:02:56.6]} 8. cxd5 {[%clk
0:03:01]} 8... exd5 {[%clk 0:02:56.4]} 9. d4 {[%clk 0:03:00.7]} 9... Re8 {[%clk
0:02:50.3]} 10. Nc3 {[%clk 0:02:59.4]} 10... cxd4 {[%clk 0:02:44.8]} 11. Qxd4
{[%clk 0:02:56.3]} 11... Nb8 {[%clk 0:02:21.6]} 12. Nxd5 {[%clk 0:02:38.6]}
12... Bxh2+ {[%clk 0:02:05.4]} 13. Kxh2 {[%clk 0:02:36.3]} 13... Qxd5 {[%clk
0:02:05.9]} 14. Qxd5 {[%clk 0:02:33.9]} 14... Nxd5 {[%clk 0:02:06.8]} 15. Rfd1
{[%clk 0:02:30.5]} 15... Be6 {[%clk 0:01:57.3]} 16. Ng5 {[%clk 0:02:24.6]} 16...
Nc6 {[%clk 0:01:54.1]} 17. Nxe6 {[%clk 0:02:22.8]} 17... fxe6 {[%clk 0:01:55]}
18. Rac1 {[%clk 0:02:17]} 18... Rad8 {[%clk 0:01:43]} 19. Bb5 {[%clk 0:02:10.4]}
19... Rf8 {[%clk 0:01:28.3]} 20. Bxc6 {[%clk 0:01:58.2]} 20... bxc6 {[%clk
0:01:27.8]} 21. Ba3 {[%clk 0:01:29.2]} 21... Rxf2 {[%clk 0:01:24.9]} 22. e4
{[%clk 0:01:29.3]} 22... Rxa2 {[%clk 0:01:17.9]} 23. Bc5 {[%clk 0:01:17.3]}
23... Rb8 {[%clk 0:01:13.3]} 24. exd5 {[%clk 0:01:16]} 24... cxd5 {[%clk
0:01:12.7]} 25. b4 {[%clk 0:01:13.5]} 25... a5 {[%clk 0:01:11.5]} 26. Bd6 {[%clk
0:01:03.7]} 26... Rb7 {[%clk 0:01:04.5]} 27. Rf1 {[%clk 0:00:42.7]} 27... h6
{[%clk 0:01:00.8]} 28. Rc8+ {[%clk 0:00:36]} 28... Kh7 {[%clk 0:01:00.5]} 29.
bxa5 {[%clk 0:00:27.1]} 29... Rxa5 {[%clk 0:00:59.8]} 30. Be5 {[%clk 0:00:26.8]}
30... Ra4 {[%clk 0:00:54.8]} 31. Re8 {[%clk 0:00:18.8]} 31... Re4 {[%clk
0:00:48.6]} 32. Rxe6 {[%clk 0:00:18.1]} 32... d4 {[%clk 0:00:48.1]} 33. Rf4
{[%clk 0:00:10.4]} 33... Re2 {[%clk 0:00:39.8]} 34. Rf8 {[%clk 0:00:03]} 34...
d3 {[%clk 0:00:26.2]} 35. Rd8 {[%clk 0:00:01.7]} 35... Rb5 {[%clk 0:00:24.4]}
0-1

[Event "*** Titled Tuesday Blitz"]
[Site "Chess.com"]
[Date "2020.04.28"]
[Round "6"]
[White "Petrosyan_Tigran"]
[Black "TheFireChess"]
[Result "0-1"]
[WhiteElo "2538"]
[BlackElo "2442"]
[TimeControl "180+1"]
[EndTime "11:06:55 PDT"]
[Termination "TheFireChess won by checkmate"]

1. Nf3 {[%clk 0:02:58.4]} 1... d6 {[%clk 0:02:59.5]} 2. c4 {[%clk 0:02:56.4]}
2... f5 {[%clk 0:02:59.9]} 3. Nc3 {[%clk 0:02:54.2]} 3... Nf6 {[%clk 0:03:00.4]}
4. d4 {[%clk 0:02:54.3]} 4... g6 {[%clk 0:03:00.9]} 5. g3 {[%clk 0:02:54.4]}
5... Bg7 {[%clk 0:03:01.4]} 6. Bg2 {[%clk 0:02:53.9]} 6... O-O {[%clk 0:03:02]}
7. O-O {[%clk 0:02:53.8]} 7... c6 {[%clk 0:03:02.6]} 8. d5 {[%clk 0:02:53.7]}
8... e5 {[%clk 0:03:02]} 9. dxe6 {[%clk 0:02:53.1]} 9... Bxe6 {[%clk 0:03:02.6]}
10. b3 {[%clk 0:02:53.2]} 10... Re8 {[%clk 0:03:02.4]} 11. Bb2 {[%clk
0:02:52.9]} 11... Na6 {[%clk 0:03:02.3]} 12. Qc2 {[%clk 0:02:47.8]} 12... Qe7
{[%clk 0:03:02.3]} 13. Rad1 {[%clk 0:02:42.8]} 13... Rad8 {[%clk 0:03:02.3]} 14.
Rfe1 {[%clk 0:02:42.5]} 14... Nc5 {[%clk 0:02:59.7]} 15. Ng5 {[%clk 0:02:31.8]}
15... Bc8 {[%clk 0:02:59.3]} 16. e4 {[%clk 0:02:22.4]} 16... h6 {[%clk 0:02:41]}
17. b4 {[%clk 0:02:02.9]} 17... hxg5 {[%clk 0:02:22.6]} 18. bxc5 {[%clk
0:02:01.7]} 18... dxc5 {[%clk 0:02:23.5]} 19. Rxd8 {[%clk 0:01:54.7]} 19... Qxd8
{[%clk 0:02:20.4]} 20. e5 {[%clk 0:01:46.3]} 20... Ng4 {[%clk 0:02:17.8]} 21.
Rd1 {[%clk 0:01:30.2]} 21... Qe7 {[%clk 0:02:14.4]} 22. Qd2 {[%clk 0:01:01.8]}
22... Nxe5 {[%clk 0:02:02.7]} 23. Qe2 {[%clk 0:00:58.1]} 23... Be6 {[%clk
0:01:43.8]} 24. Na4 {[%clk 0:00:55.9]} 24... Bxc4 {[%clk 0:01:36.4]} 25. Qc2
{[%clk 0:00:55.2]} 25... b5 {[%clk 0:01:05.3]} 26. Bxe5 {[%clk 0:00:49]} 26...
Qxe5 {[%clk 0:01:06.2]} 27. Bxc6 {[%clk 0:00:48.3]} 27... Re6 {[%clk 0:00:44.5]}
28. Bd7 {[%clk 0:00:28.4]} 28... Qe1+ {[%clk 0:00:15.7]} 29. Rxe1 {[%clk
0:00:26.4]} 29... Rxe1+ {[%clk 0:00:16.6]} 30. Kg2 {[%clk 0:00:25.7]} 30... Bf1+
{[%clk 0:00:17.1]} 31. Kf3 {[%clk 0:00:13.9]} 31... g4+ {[%clk 0:00:17.4]} 32.
Kf4 {[%clk 0:00:14.4]} 32... Bh6# {[%clk 0:00:17.6]} 0-1

[Event "*** Titled Tuesday Blitz"]
[Site "Chess.com"]
[Date "2020.04.28"]
[Round "6"]
[White "Tapuah"]
[Black "RitvarsReimanis"]
[Result "1-0"]
[WhiteElo "2836"]
[BlackElo "2598"]
[TimeControl "180+1"]
[EndTime "11:06:57 PDT"]
[Termination "Tapuah won on time"]

1. e4 {[%clk 0:03:00.9]} 1... c5 {[%clk 0:03:00.4]} 2. Nf3 {[%clk 0:03:00.5]}
2... Nc6 {[%clk 0:03:01]} 3. Bb5 {[%clk 0:02:59.5]} 3... g6 {[%clk 0:03:01.5]}
4. c3 {[%clk 0:02:59.3]} 4... Nf6 {[%clk 0:03:00.9]} 5. Qe2 {[%clk 0:02:59]}
5... Bg7 {[%clk 0:02:55.7]} 6. O-O {[%clk 0:02:58.3]} 6... O-O {[%clk
0:02:54.7]} 7. d4 {[%clk 0:02:58]} 7... cxd4 {[%clk 0:02:54]} 8. cxd4 {[%clk
0:02:57.6]} 8... d5 {[%clk 0:02:54.5]} 9. e5 {[%clk 0:02:58]} 9... Ne4 {[%clk
0:02:55.1]} 10. Rd1 {[%clk 0:02:57.9]} 10... Bg4 {[%clk 0:02:51.5]} 11. h3
{[%clk 0:02:54]} 11... Bd7 {[%clk 0:02:46.3]} 12. Be3 {[%clk 0:02:29.8]} 12...
Qb6 {[%clk 0:02:43.5]} 13. Ba4 {[%clk 0:02:17.9]} 13... Rac8 {[%clk 0:02:26.6]}
14. Nc3 {[%clk 0:02:02.1]} 14... Nxc3 {[%clk 0:02:26.7]} 15. bxc3 {[%clk
0:02:01.9]} 15... Qa5 {[%clk 0:02:27.3]} 16. Bb3 {[%clk 0:01:58.7]} 16... Be6
{[%clk 0:02:03.2]} 17. Bd2 {[%clk 0:01:46.1]} 17... Qb6 {[%clk 0:01:46.5]} 18.
Rab1 {[%clk 0:01:42.3]} 18... Qc7 {[%clk 0:01:44.4]} 19. Ng5 {[%clk 0:01:40.4]}
19... Na5 {[%clk 0:01:44.7]} 20. Nxe6 {[%clk 0:01:40]} 20... fxe6 {[%clk
0:01:45.6]} 21. Qg4 {[%clk 0:01:32.4]} 21... Qd7 {[%clk 0:01:36.1]} 22. Bc2
{[%clk 0:01:29.7]} 22... Nc4 {[%clk 0:01:33.5]} 23. Bc1 {[%clk 0:01:29.7]} 23...
Rf5 {[%clk 0:00:57.1]} 24. h4 {[%clk 0:01:22.1]} 24... b6 {[%clk 0:00:50]} 25.
Qe2 {[%clk 0:01:13.7]} 25... Na5 {[%clk 0:00:36.4]} 26. g4 {[%clk 0:01:09.1]}
26... Rf7 {[%clk 0:00:34.2]} 27. Rd3 {[%clk 0:01:03.5]} 27... Rcf8 {[%clk
0:00:29]} 28. f3 {[%clk 0:00:59.8]} 28... Kh8 {[%clk 0:00:24.4]} 29. Kg2 {[%clk
0:00:57.4]} 29... Rg8 {[%clk 0:00:24.3]} 30. Bg5 {[%clk 0:00:54.6]} 30... Nc4
{[%clk 0:00:18.7]} 31. Rh1 {[%clk 0:00:51.7]} 31... Bf8 {[%clk 0:00:16.8]} 32.
Rdd1 {[%clk 0:00:47.2]} 32... Na3 {[%clk 0:00:11.1]} 33. Bd3 {[%clk 0:00:46.3]}
33... Qa4 {[%clk 0:00:09.2]} 34. h5 {[%clk 0:00:43.8]} 34... gxh5 {[%clk
0:00:09.6]} 35. Rxh5 {[%clk 0:00:43.2]} 35... Nc4 {[%clk 0:00:06.4]} 36. Rdh1
{[%clk 0:00:41.3]} 36... Rgg7 {[%clk 0:00:03.9]} 37. Bh6 {[%clk 0:00:39.7]}
37... Rg8 {[%clk 0:00:02.9]} 38. Bxf8 {[%clk 0:00:35.7]} 38... Rgxf8 {[%clk
0:00:03.8]} 39. Bxh7 {[%clk 0:00:34.4]} 39... Kg7 {[%clk 0:00:01.8]} 40. Rg5+
{[%clk 0:00:32.7]} 40... Kh8 {[%clk 0:00:02.3]} 41. Bd3+ {[%clk 0:00:32.1]} 1-0

[Event "*** Titled Tuesday Blitz"]
[Site "Chess.com"]
[Date "2020.04.28"]
[Round "6"]
[White "Tsubasa"]
[Black "MarcoCorvi"]
[Result "1-0"]
[WhiteElo "2415"]
[BlackElo "2193"]
[TimeControl "180+1"]
[EndTime "11:06:57 PDT"]
[Termination "Tsubasa won by checkmate"]

1. d4 {[%clk 0:03:00.9]} 1... f5 {[%clk 0:02:58.8]} 2. Bg5 {[%clk 0:02:58.8]}
2... h6 {[%clk 0:02:57.6]} 3. Bh4 {[%clk 0:02:56.4]} 3... g5 {[%clk 0:02:57.1]}
4. e3 {[%clk 0:02:38.5]} 4... Nf6 {[%clk 0:02:54]} 5. Bg3 {[%clk 0:02:37.9]}
5... Bg7 {[%clk 0:02:52.2]} 6. h4 {[%clk 0:02:34.9]} 6... g4 {[%clk 0:02:52]} 7.
Bd3 {[%clk 0:02:29.3]} 7... d6 {[%clk 0:02:49.9]} 8. c4 {[%clk 0:02:26.8]} 8...
Nh5 {[%clk 0:02:48.8]} 9. Ne2 {[%clk 0:02:25.2]} 9... O-O {[%clk 0:02:47.1]} 10.
Nbc3 {[%clk 0:02:20.1]} 10... Nc6 {[%clk 0:02:47]} 11. d5 {[%clk 0:01:51.5]}
11... Ne5 {[%clk 0:02:40.3]} 12. Bxe5 {[%clk 0:01:49.4]} 12... dxe5 {[%clk
0:02:38]} 13. Qd2 {[%clk 0:01:45.8]} 13... Bd7 {[%clk 0:02:37.1]} 14. O-O-O
{[%clk 0:01:43.5]} 14... a6 {[%clk 0:02:30.5]} 15. f3 {[%clk 0:01:39.1]} 15...
b5 {[%clk 0:02:23.5]} 16. c5 {[%clk 0:01:24.8]} 16... b4 {[%clk 0:02:20.3]} 17.
Nb1 {[%clk 0:01:24.6]} 17... Bb5 {[%clk 0:02:11]} 18. Qc2 {[%clk 0:01:14.7]}
18... Bxd3 {[%clk 0:02:02.1]} 19. Rxd3 {[%clk 0:01:13.5]} 19... a5 {[%clk
0:01:53]} 20. Nd2 {[%clk 0:01:08]} 20... a4 {[%clk 0:01:51.9]} 21. Qc4 {[%clk
0:01:03.9]} 21... a3 {[%clk 0:01:31.8]} 22. b3 {[%clk 0:00:59.8]} 22... e4
{[%clk 0:01:30.5]} 23. fxe4 {[%clk 0:00:54.8]} 23... fxe4 {[%clk 0:01:27.2]} 24.
Qxe4 {[%clk 0:00:54.6]} 24... Nf6 {[%clk 0:00:53.6]} 25. Qe6+ {[%clk 0:00:51.3]}
25... Kh8 {[%clk 0:00:52.2]} 26. Nf4 {[%clk 0:00:49.5]} 26... Ra5 {[%clk
0:00:34.6]} 27. Ng6+ {[%clk 0:00:46.1]} 27... Kh7 {[%clk 0:00:34.7]} 28. Nxf8+
{[%clk 0:00:43.8]} 28... Qxf8 {[%clk 0:00:34.5]} 29. Ne4 {[%clk 0:00:42.7]}
29... Kh8 {[%clk 0:00:29.6]} 30. d6 {[%clk 0:00:25.7]} 30... Nxe4 {[%clk
0:00:28.1]} 31. dxe7 {[%clk 0:00:20.6]} 31... Rxc5+ {[%clk 0:00:27.4]} 32. Kd1
{[%clk 0:00:18.2]} 32... Nf2+ {[%clk 0:00:21.1]} 33. Ke2 {[%clk 0:00:14.2]}
33... Rc2+ {[%clk 0:00:20]} 34. Kf1 {[%clk 0:00:14.3]} 34... Qe8 {[%clk
0:00:18.2]} 35. Rd8 {[%clk 0:00:13.6]} 35... g3 {[%clk 0:00:09.7]} 36. Rxe8+
{[%clk 0:00:12.9]} 36... Kh7 {[%clk 0:00:10.6]} 37. Qf5# {[%clk 0:00:12.8]} 1-0

[Event "*** Titled Tuesday Blitz"]
[Site "Chess.com"]
[Date "2020.04.28"]
[Round "6"]
[White "Pomegranate988"]
[Black "josiwales"]
[Result "1-0"]
[WhiteElo "2471"]
[BlackElo "2590"]
[TimeControl "180+1"]
[EndTime "11:06:58 PDT"]
[Termination "Pomegranate988 won by resignation"]

1. d4 {[%clk 0:03:00.9]} 1... d5 {[%clk 0:02:59.6]} 2. c4 {[%clk 0:03:00.8]}
2... c6 {[%clk 0:02:59]} 3. Nf3 {[%clk 0:03:01.3]} 3... Nf6 {[%clk 0:02:59.5]}
4. Nc3 {[%clk 0:03:01]} 4... dxc4 {[%clk 0:03:00.1]} 5. e4 {[%clk 0:03:00.9]}
5... b5 {[%clk 0:03:00]} 6. Be2 {[%clk 0:02:58.2]} 6... e6 {[%clk 0:02:59.5]} 7.
O-O {[%clk 0:02:56.4]} 7... Bb7 {[%clk 0:02:59.8]} 8. Re1 {[%clk 0:02:48.2]}
8... Be7 {[%clk 0:02:56]} 9. Bf1 {[%clk 0:02:42.7]} 9... O-O {[%clk 0:02:52.2]}
10. b3 {[%clk 0:02:42.3]} 10... b4 {[%clk 0:02:51.3]} 11. Na4 {[%clk 0:02:41.5]}
11... c3 {[%clk 0:02:49.7]} 12. Bg5 {[%clk 0:02:29.1]} 12... Nbd7 {[%clk
0:02:48.5]} 13. Qc2 {[%clk 0:02:18.8]} 13... Qa5 {[%clk 0:02:34.1]} 14. a3
{[%clk 0:02:11.3]} 14... c5 {[%clk 0:02:02.7]} 15. d5 {[%clk 0:01:40.7]} 15...
exd5 {[%clk 0:01:41.4]} 16. e5 {[%clk 0:01:33.2]} 16... d4 {[%clk 0:01:28.4]}
17. exf6 {[%clk 0:01:30.9]} 17... Bxf6 {[%clk 0:01:29.3]} 18. Bxf6 {[%clk
0:01:22.8]} 18... Nxf6 {[%clk 0:01:30.2]} 19. Ne5 {[%clk 0:01:22.1]} 19... Rfe8
{[%clk 0:01:22.7]} 20. Bc4 {[%clk 0:01:18.7]} 20... Re7 {[%clk 0:01:12.4]} 21.
Nd3 {[%clk 0:01:07.4]} 21... Rae8 {[%clk 0:01:00.2]} 22. Rxe7 {[%clk 0:01:06.6]}
22... Rxe7 {[%clk 0:01:00.9]} 23. Naxc5 {[%clk 0:01:06]} 23... Ba8 {[%clk
0:00:49.3]} 24. Qc1 {[%clk 0:00:56.8]} 24... bxa3 {[%clk 0:00:38]} 25. Rxa3
{[%clk 0:00:52.3]} 25... Qc7 {[%clk 0:00:28.3]} 26. h3 {[%clk 0:00:44.7]} 26...
Qc6 {[%clk 0:00:25.2]} 27. Qg5 {[%clk 0:00:42.5]} 27... h6 {[%clk 0:00:21.5]}
28. Qg3 {[%clk 0:00:41.8]} 28... Kh7 {[%clk 0:00:19.2]} 29. Ra1 {[%clk
0:00:39.6]} 29... Ne4 {[%clk 0:00:14.6]} 30. Nxe4 {[%clk 0:00:38.7]} 30... Qxe4
{[%clk 0:00:15.5]} 31. Re1 {[%clk 0:00:37.4]} 31... Qb7 {[%clk 0:00:06.3]} 32.
Ne5 {[%clk 0:00:32.7]} 32... g6 {[%clk 0:00:04.2]} 33. Bxf7 {[%clk 0:00:28]}
33... Rxf7 {[%clk 0:00:02.6]} 34. Nxf7 {[%clk 0:00:25.9]} 34... Qxf7 {[%clk
0:00:02.1]} 35. Qd6 {[%clk 0:00:25.8]} 35... Qd5 {[%clk 0:00:01.3]} 36. Re7+
{[%clk 0:00:24.3]} 36... Kh8 {[%clk 0:00:01.6]} 37. Qb8+ {[%clk 0:00:23.6]}
37... Qg8 {[%clk 0:00:01.7]} 38. Re8 {[%clk 0:00:23.8]} 38... Bd5 {[%clk
0:00:02.2]} 39. Rxg8+ {[%clk 0:00:23.2]} 39... Bxg8 {[%clk 0:00:03.1]} 40. Qe5+
{[%clk 0:00:23.3]} 1-0

[Event "*** Titled Tuesday Blitz"]
[Site "Chess.com"]
[Date "2020.04.28"]
[Round "6"]
[White "Alohamora11"]
[Black "ZarinaShafigullina"]
[Result "1-0"]
[WhiteElo "2525"]
[BlackElo "2214"]
[TimeControl "180+1"]
[EndTime "11:07:00 PDT"]
[Termination "Alohamora11 won by checkmate"]

1. e4 {[%clk 0:03:00.9]} 1... c5 {[%clk 0:02:59.8]} 2. Nf3 {[%clk 0:03:01.4]}
2... Nc6 {[%clk 0:02:59.9]} 3. d4 {[%clk 0:03:02]} 3... cxd4 {[%clk 0:03:00.3]}
4. Nxd4 {[%clk 0:03:02.9]} 4... e5 {[%clk 0:03:00.7]} 5. Nb5 {[%clk 0:03:02.2]}
5... d6 {[%clk 0:03:01.3]} 6. N1c3 {[%clk 0:03:01.3]} 6... a6 {[%clk 0:03:01.5]}
7. Na3 {[%clk 0:03:01.7]} 7... Be7 {[%clk 0:03:02.2]} 8. Nd5 {[%clk 0:03:00.8]}
8... Nf6 {[%clk 0:03:01.9]} 9. Bd3 {[%clk 0:02:24.6]} 9... O-O {[%clk 0:02:57]}
10. Nc4 {[%clk 0:02:19]} 10... Nxd5 {[%clk 0:02:46]} 11. exd5 {[%clk 0:02:19.9]}
11... Nb4 {[%clk 0:02:46.3]} 12. O-O {[%clk 0:02:16.1]} 12... Nxd3 {[%clk
0:02:33]} 13. Qxd3 {[%clk 0:02:17]} 13... f5 {[%clk 0:02:28.7]} 14. f3 {[%clk
0:02:10.8]} 14... b5 {[%clk 0:02:25]} 15. Ne3 {[%clk 0:02:03.7]} 15... f4 {[%clk
0:02:23.4]} 16. Nd1 {[%clk 0:01:58.3]} 16... Bf5 {[%clk 0:02:19.7]} 17. Qe2
{[%clk 0:01:58.3]} 17... Qb6+ {[%clk 0:02:17.1]} 18. Nf2 {[%clk 0:01:57.7]}
18... Qc5 {[%clk 0:02:15.4]} 19. Bxf4 {[%clk 0:01:34]} 19... exf4 {[%clk
0:01:45.9]} 20. Qxe7 {[%clk 0:01:32.3]} 20... Rae8 {[%clk 0:01:46.4]} 21. Qg5
{[%clk 0:01:25.9]} 21... Bg6 {[%clk 0:01:28.6]} 22. Rae1 {[%clk 0:01:20.8]}
22... Re3 {[%clk 0:01:16.6]} 23. b4 {[%clk 0:01:07.1]} 23... Qb6 {[%clk
0:00:41.6]} 24. h4 {[%clk 0:00:38.2]} 24... Bxc2 {[%clk 0:00:27.6]} 25. h5
{[%clk 0:00:25.9]} 25... Bd3 {[%clk 0:00:27.2]} 26. Rxe3 {[%clk 0:00:15.7]}
26... Bxf1 {[%clk 0:00:10]} 27. Re7 {[%clk 0:00:14.6]} 27... Rf7 {[%clk
0:00:07.8]} 28. Re8+ {[%clk 0:00:11.1]} 28... Rf8 {[%clk 0:00:08]} 29. Rxf8+
{[%clk 0:00:11.6]} 29... Kxf8 {[%clk 0:00:08.1]} 30. Qxf4+ {[%clk 0:00:12.2]}
30... Kg8 {[%clk 0:00:08]} 31. Kxf1 {[%clk 0:00:12.3]} 31... a5 {[%clk
0:00:07.8]} 32. Qe4 {[%clk 0:00:10.9]} 32... axb4 {[%clk 0:00:06.8]} 33. Qe8#
{[%clk 0:00:11]} 1-0

[Event "*** Titled Tuesday Blitz"]
[Site "Chess.com"]
[Date "2020.04.28"]
[Round "6"]
[White "GianmarcoVaR"]
[Black "NFChess13"]
[Result "1-0"]
[WhiteElo "2564"]
[BlackElo "2391"]
[TimeControl "180+1"]
[EndTime "11:07:00 PDT"]
[Termination "GianmarcoVaR won by resignation"]

1. d4 {[%clk 0:03:00.9]} 1... Nf6 {[%clk 0:02:58.7]} 2. c4 {[%clk 0:03:01]} 2...
g6 {[%clk 0:02:58]} 3. Nf3 {[%clk 0:03:01.1]} 3... Bg7 {[%clk 0:02:57.4]} 4. g3
{[%clk 0:03:01.4]} 4... c6 {[%clk 0:02:55.3]} 5. Bg2 {[%clk 0:03:00.5]} 5... d5
{[%clk 0:02:55.4]} 6. b3 {[%clk 0:02:54.5]} 6... dxc4 {[%clk 0:02:46.5]} 7. bxc4
{[%clk 0:02:53.5]} 7... c5 {[%clk 0:02:46.6]} 8. Bb2 {[%clk 0:02:50.8]} 8... Qb6
{[%clk 0:02:41.9]} 9. Qb3 {[%clk 0:02:47.3]} 9... cxd4 {[%clk 0:02:26.4]} 10.
Nxd4 {[%clk 0:02:31]} 10... O-O {[%clk 0:02:23.7]} 11. O-O {[%clk 0:02:24]}
11... Rd8 {[%clk 0:02:20.7]} 12. Nd2 {[%clk 0:02:16.7]} 12... Na6 {[%clk
0:02:13.1]} 13. Qxb6 {[%clk 0:01:58.3]} 13... axb6 {[%clk 0:02:11.6]} 14. N2b3
{[%clk 0:01:56.5]} 14... Nc5 {[%clk 0:02:09.4]} 15. Nxc5 {[%clk 0:01:55.6]}
15... bxc5 {[%clk 0:02:10.3]} 16. Nb3 {[%clk 0:01:56.5]} 16... Be6 {[%clk
0:02:00.8]} 17. Bxb7 {[%clk 0:01:45.8]} 17... Rab8 {[%clk 0:01:56.5]} 18. Nxc5
{[%clk 0:01:45.5]} 18... Bxc4 {[%clk 0:01:40.3]} 19. Be5 {[%clk 0:01:43.1]}
19... Nd5 {[%clk 0:00:56.3]} 20. Bxb8 {[%clk 0:01:17.6]} 20... Bxa1 {[%clk
0:00:54]} 21. Rxa1 {[%clk 0:01:15.4]} 21... Rxb8 {[%clk 0:00:54.2]} 22. e4
{[%clk 0:00:55.8]} 22... Nc3 {[%clk 0:00:51.1]} 23. a4 {[%clk 0:00:54.4]} 23...
Kg7 {[%clk 0:00:25]} 24. Kg2 {[%clk 0:00:47.5]} 24... Be2 {[%clk 0:00:17.2]} 25.
Ra3 {[%clk 0:00:31.7]} 25... Nb1 {[%clk 0:00:14.2]} 26. Re3 {[%clk 0:00:26.8]}
26... Bc4 {[%clk 0:00:13.7]} 27. a5 {[%clk 0:00:24.9]} 27... Nd2 {[%clk
0:00:08.8]} 28. a6 {[%clk 0:00:23.3]} 28... Bxa6 {[%clk 0:00:08.9]} 29. Bxa6
{[%clk 0:00:22.2]} 29... Rb4 {[%clk 0:00:09.8]} 30. Re2 {[%clk 0:00:16.6]} 30...
Nc4 {[%clk 0:00:09.1]} 31. Bxc4 {[%clk 0:00:16.2]} 31... Rxc4 {[%clk 0:00:10]}
32. Nd3 {[%clk 0:00:16.7]} 32... f6 {[%clk 0:00:10.3]} 33. Nf4 {[%clk
0:00:16.8]} 33... Kf7 {[%clk 0:00:10.3]} 34. e5 {[%clk 0:00:16.8]} 34... Rc7
{[%clk 0:00:08.6]} 35. Nd5 {[%clk 0:00:15.1]} 35... Rd7 {[%clk 0:00:08]} 36. e6+
{[%clk 0:00:15.3]} 1-0

[Event "*** Titled Tuesday Blitz"]
[Site "Chess.com"]
[Date "2020.04.28"]
[Round "6"]
[White "Pittiplatsh"]
[Black "JLRHei"]
[Result "0-1"]
[WhiteElo "2436"]
[BlackElo "2302"]
[TimeControl "180+1"]
[EndTime "11:07:00 PDT"]
[Termination "JLRHei won by resignation"]

1. e4 {[%clk 0:03:00.9]} 1... c5 {[%clk 0:02:59.7]} 2. Nf3 {[%clk 0:03:00.5]}
2... e6 {[%clk 0:03:00.2]} 3. d4 {[%clk 0:03:00.6]} 3... cxd4 {[%clk 0:03:01.1]}
4. Nxd4 {[%clk 0:03:00.9]} 4... Nf6 {[%clk 0:03:01.6]} 5. Nc3 {[%clk 0:03:01.1]}
5... d6 {[%clk 0:03:02.2]} 6. Be3 {[%clk 0:02:59.9]} 6... Be7 {[%clk 0:03:02]}
7. f3 {[%clk 0:02:59.8]} 7... O-O {[%clk 0:03:02.3]} 8. Qd2 {[%clk 0:03:00.2]}
8... Nc6 {[%clk 0:03:03]} 9. g4 {[%clk 0:02:59.1]} 9... d5 {[%clk 0:03:02.3]}
10. g5 {[%clk 0:02:48]} 10... Nxd4 {[%clk 0:02:57]} 11. Qxd4 {[%clk 0:02:42.8]}
11... Nh5 {[%clk 0:02:27.5]} 12. exd5 {[%clk 0:02:27.9]} 12... Bxg5 {[%clk
0:02:19]} 13. O-O-O {[%clk 0:02:24.8]} 13... Qf6 {[%clk 0:01:00.5]} 14. Bxg5
{[%clk 0:01:57.6]} 14... Qxg5+ {[%clk 0:00:55.9]} 15. Kb1 {[%clk 0:01:56.8]}
15... Qf4 {[%clk 0:00:39.9]} 16. d6 {[%clk 0:01:37.7]} 16... Qxd4 {[%clk
0:00:36.8]} 17. Rxd4 {[%clk 0:01:37.6]} 17... Bd7 {[%clk 0:00:36.5]} 18. Ne4
{[%clk 0:01:33.8]} 18... b6 {[%clk 0:00:31.7]} 19. Rg1 {[%clk 0:01:29.7]} 19...
Rfd8 {[%clk 0:00:16.6]} 20. Rg5 {[%clk 0:01:13.3]} 20... g6 {[%clk 0:00:17]} 21.
Bb5 {[%clk 0:01:05.6]} 21... Kg7 {[%clk 0:00:15.6]} 22. Bxd7 {[%clk 0:01:04.6]}
22... Rxd7 {[%clk 0:00:16.5]} 23. a4 {[%clk 0:01:02.6]} 23... Nf6 {[%clk
0:00:14.8]} 24. a5 {[%clk 0:00:57.4]} 24... Rad8 {[%clk 0:00:13.1]} 25. axb6
{[%clk 0:00:57.3]} 25... axb6 {[%clk 0:00:14]} 26. Rb4 {[%clk 0:00:36.5]} 26...
Nxe4 {[%clk 0:00:13.1]} 27. fxe4 {[%clk 0:00:37]} 27... Rxd6 {[%clk 0:00:13.7]}
28. Rgb5 {[%clk 0:00:36.3]} 28... Rd1+ {[%clk 0:00:11.3]} 29. Ka2 {[%clk
0:00:35.3]} 29... R1d2 {[%clk 0:00:11.9]} 30. c3 {[%clk 0:00:32.4]} 30... Rg2
{[%clk 0:00:11.3]} 31. Rxb6 {[%clk 0:00:28.9]} 31... Rxh2 {[%clk 0:00:11.8]} 32.
Rb7 {[%clk 0:00:29.5]} 32... h5 {[%clk 0:00:11.1]} 33. Rc7 {[%clk 0:00:28.6]}
33... h4 {[%clk 0:00:10.7]} 34. Rbb7 {[%clk 0:00:28.1]} 34... Rf2 {[%clk
0:00:10.9]} 35. Rd7 {[%clk 0:00:21.5]} 35... Rh8 {[%clk 0:00:10]} 36. Rd1 {[%clk
0:00:20.4]} 36... h3 {[%clk 0:00:10.1]} 37. Rh1 {[%clk 0:00:20.9]} 37... h2
{[%clk 0:00:10.2]} 38. e5 {[%clk 0:00:20.4]} 38... Rg2 {[%clk 0:00:10]} 39. Rb4
{[%clk 0:00:20.8]} 39... Rg1 {[%clk 0:00:10]} 0-1